[Event "Oceania Zonal Open 2023"]
[Site "Melbourne"]
[Date "2023.01.24"]
[Round "2.4"]
[White "Peramunetilleke, Seth"]
[Black "Bjelobrk, Igor"]
[Result "1/2-1/2"]
[ECO "B22"]
[WhiteElo "1841"]
[BlackElo "2405"]
[Annotator "TA"]
[PlyCount "90"]
[EventDate "2023.01.09"]
[EventType "swiss"]
[EventCountry "AUS"]
[SourceTitle "playchess.com"]
[Source "ChessBase"]
[SourceQuality "1"]
[TimeControl "5400+30"]

{[%evp 19,90,0,0,-13,0,-13,-1,2,-8,-32,-10,-17,-14,-16,-17,-16,-17,-22,-7,-11,-16,-28,-5,-15,-16,-34,-45,-149,-158,-133,16,11,88,97,90,81,77,67,117,109,136,130,119,127,127,122,104,118,108,112,147,100,191,179,164,164,164,164,164,164,243,243,237,229,227,227,187,160,150,97,97,97,97]} 1. e4 {[%emt 0:00:02]} c5 {[%emt 0:05:49]} 2. c3 {[%emt 0:00:10]} Nf6 {[%emt 0:00:09]} 3. e5 {[%emt 0:00:10]} Nd5 {[%emt 0:00:05]} 4. d4 {[%emt 0:00:06]} cxd4 {[%emt 0:00:05]} 5. Nf3 {[%emt 0:00:07]} e6 {[%emt 0:00:14]} 6. cxd4 {[%emt 0:00:31]} d6 {[%emt 0:00:06]} 7. a3 {[%emt 0:01:35]} Bd7 {[%emt 0:00:26]} 8. Bd3 {[%emt 0:00:18]} Bc6 {[%emt 0:00:07]} 9. O-O {[%emt 0:00:48]} Nd7 {[%emt 0:00:05]} 10. Re1 {[%emt 0:02:27]} Rc8 {[%emt 0:01:07]} 11. Bd2 {[%emt 0:01:25] B22: Sicilian: 2 c3.} dxe5 {[%emt 0:07:01]} 12. dxe5 {[%emt 0:10:21] [#]} Nc5 $146 {[%emt 0:04:27]} ({Predecessor:} 12... Be7 13. Nd4 O-O 14. Nxc6 Rxc6 15. Nc3 Nc5 16. Bc2 Nxc3 17. Bxc3 Qxd1 18. Raxd1 Rcc8 {1-0 Mikadze,M (2255)-Zaritovskaja,M (1731) Olympiad Women-43 2018 (2.6)}) 13. Bc2 {[%emt 0:01:13] The position is equal.} Nb6 {[%emt 0:01:40]} 14. b4 {[%emt 0:21:24]} Nca4 {[%emt 0:19:07]} (14... Nd3 $5 {[%cal Rc6f3]} 15. Bg5 Bxf3 16. Bxd3 Bxd1 17. Bxd8 Rxd8 18. Rxd1 Ke7 $11) 15. Be3 {[%emt 0:07:08]} Qxd1 {[%emt 0:02:29]} 16. Bxd1 {[%emt 0:00:11]} Be7 {[%emt 0:04:04]} 17. Nbd2 {[%emt 0:03:56]} O-O {[%emt 0:04:13]} 18. Rc1 {[%emt 0:05:37]} Rfd8 {[%emt 0:02:57]} 19. Nd4 {[%emt 0:08:20]} Bd5 {[%emt 0:02:49]} 20. Bb3 {[%emt 0:02:50]} Nc3 {[%emt 0:06:53]} 21. Kf1 {[%emt 0:04:49]} Bxb3 {[%emt 0:06:56]} 22. N4xb3 {[%emt 0:01:57]} Nbd5 {[%emt 0:00:21]} 23. Bxa7 {[%emt 0:05:12]} (23. Bc5 $1 $15) 23... b6 $1 $17 {[%emt 0:02:01]} 24. Nd4 {[%emt 0:02:39] Dodges Nb5} Rc7 {[%emt 0:01:20]} (24... Bg5 $1 $17 {[%cal Rg5d2]} 25. Rc2 Rc7) 25. Ne4 $11 {[%emt 0:01:25] Threatens to win with Nxc3.} Nxe4 {[%emt 0:17:36]} ({Resist} 25... Rxa7 26. Nxc3 Bg5 27. Nc6 Bxc1 28. Nxa7 $16) (25... Rdc8 $1 $11 {remains equal.} 26. Nxc3 Rxc3 27. Rxc3 Rxc3) 26. Rxc7 $16 {[%emt 0:00:09]} Nd2+ {[%emt 0:00:06] [#]} 27. Ke2 $1 {[%emt 0:00:08]} Nxc7 {[%emt 0:00:13][%cal Bd5c7,Bc7b5,Bb5c3][%mdl 32]} 28. Nc6 {[%emt 0:01:25][%cal Oc6d8]} Rd7 {[%emt 0:00:26]} (28... Nb5 $14 29. Nxd8 (29. Nxe7+ Kf8 $17) 29... Nxa7) 29. Nxe7+ {[%emt 0:00:16]} ({Not} 29. Bxb6 Nc4 30. Nxe7+ Rxe7 31. Bxc7 Rxc7 $15) 29... Kf8 {[%emt 0:03:38]} 30. Bxb6 {[%emt 0:02:44][%cal Oe1c1]} Nb5 {[%emt 0:04:22] Hoping for ...Nc3+.} 31. Nc8 {[%emt 0:03:29] Bc5+ would be deadly.} Nc3+ {[%emt 0:02:01]} 32. Ke3 {[%emt 0:00:11]} Nc4+ {[%emt 0:00:19]} 33. Kf3 {[%emt 0:00:18] And now Bc5+ would win.} Rd3+ {[%emt 0:00:23]} 34. Kg4 {[%emt 0:00:55]} Nxa3 {[%emt 0:02:47]} 35. Re3 {[%emt 0:00:46]} (35. Bc5+ $142 Kg8 36. Nd6) 35... Rxe3 {[%emt 0:00:28]} (35... Nc4 $16) 36. Bxe3 {[%emt 0:00:14][%mdl 4096] Endgame KBN-KNN} ({Don't do} 36. fxe3 $6 Nc4 $16) 36... Nc4 {[%emt 0:00:54]} 37. Bc5+ {[%emt 0:00:51]} Ke8 {[%emt 0:00:40]} 38. Nd6+ {[%emt 0:00:22]} Nxd6 {[%emt 0:00:04]} 39. Bxd6 $18 {[%emt 0:00:05] KB-KN} Ne4 {[%emt 0:00:50]} (39... Nb5 {was called for.}) 40. Kf3 {[%emt 0:05:14]} Nc3 {[%emt 0:00:23]} 41. Ke3 {[%emt 0:00:33] Kd4 is the strong threat.} Nb5 {[%emt 0:00:12]} 42. Bc5 {[%emt 0:01:41]} Kd7 {[%emt 0:00:41]} 43. Kd3 {[%emt 0:00:48]} Kc6 {[%emt 0:00:17] [#]} 44. Kc4 {[%emt 0:00:27]} (44. Ke4 $142 $1) 44... Nc7 {[%emt 0:00:37]} 45. Bf8 {[%emt 0:01:00]} g6 {[%emt 0:00:02] What a bad dream for Black.   Weighted Error Value: White=0.11 (very precise) /Black=0.19 (very precise)} 1/2-1/2

[Event "Oceania Zonal Open 2023"]
[Site "Melbourne"]
[Date "2023.01.24"]
[Round "2.5"]
[White "Lane, Gary W"]
[Black "Lane, Ryan"]
[Result "1-0"]
[ECO "C62"]
[WhiteElo "2343"]
[BlackElo "1825"]
[Annotator "TA"]
[PlyCount "43"]
[EventDate "2023.01.09"]
[EventType "swiss"]
[EventCountry "AUS"]
[SourceTitle "playchess.com"]
[Source "ChessBase"]
[SourceQuality "1"]
[TimeControl "5400+30"]

{[%evp 11,43,20,25,19,20,19,39,34,41,46,77,72,81,77,172,179,208,208,216,154,412,410,408,400,421,381,619,603,911,934,867,884,871,893]} 1. e4 {[%emt 0:00:07]} e5 {[%emt 0:00:13]} 2. Nf3 {[%emt 0:00:10]} Nc6 {[%emt 0:00:08]} 3. Bb5 {[%emt 0:00:05]} d6 {[%emt 0:00:54]} 4. d4 {[%emt 0:03:20]} exd4 {[%emt 0:01:38]} 5. Nxd4 {[%emt 0:00:15]} Bd7 {[%emt 0:00:29]} 6. Nc3 {[%emt 0:02:51]} Be7 {[%emt 0:03:12]} 7. Nf5 {[%emt 0:08:16] C62: Ruy Lopez: Steinitz Defence.} Bxf5 {[%emt 0:05:45]} 8. exf5 {[%emt 0:00:05]} Nf6 {[%emt 0:00:29]} 9. Qf3 {[%emt 0:11:04] White is slightly better.} Qd7 {[%emt 0:01:24] [#]} 10. g4 $146 {[%emt 0:09:23]} ({Predecessor:} 10. O-O O-O 11. Bg5 h6 12. Bh4 a6 13. Bxc6 Qxc6 14. Qxc6 bxc6 15. Rfe1 Bd8 16. Ne2 Re8 17. Nd4 Rxe1+ 18. Rxe1 c5 19. Nc6 {1-0 Majidi,A (1198)-Rostami,S (1004) IRI-ch U12 Girls 2021 (4)}) 10... h6 {[%emt 0:06:29]} 11. Bf4 {[%emt 0:06:28]} a6 {[%emt 0:06:20]} 12. Ba4 {[%emt 0:00:34]} b5 {[%emt 0:00:36]} (12... g6 $16 {keeps fighting.}) 13. Bb3 $18 {[%emt 0:05:44]} O-O {[%emt 0:02:48]} 14. O-O-O {[%emt 0:00:54]} Na5 {[%emt 0:00:34]} 15. h4 {[%emt 0:04:47] Threatens to win with g5.} c5 $2 {[%emt 0:01:25] [#]} (15... Nxb3+ $16 16. axb3 b4) 16. Bd5 {[%emt 0:03:48]} b4 {[%emt 0:02:09][%cal Ob4c3]} 17. Ne4 {[%emt 0:04:38]} (17. Bxa8 bxc3 18. b3 (18. bxc3 Qa4 $16) 18... Qc8 $18) 17... Nxd5 {[%emt 0:00:15]} 18. Rxd5 {[%emt 0:00:06]} Qa4 $2 {[%emt 0:00:36]} (18... Nc6 19. f6 (19. Bxd6 Bxd6 20. Rxd6 Nd4 $16) 19... Qe6) 19. Kb1 {[%emt 0:03:35] [#] Hoping for f6. White is clearly winning.} (19. Bxd6 Qxa2 20. Bxe7 Nc4 $11) 19... Rab8 {[%emt 0:01:39]} 20. f6 {[%emt 0:08:34][%cal Bf5f6,Bf6e7][%mdl 32]} ({Less strong is} 20. Nxd6 Qc6 $18) (20. Bxd6 Bxd6 21. Nxd6 Qc6 $18) 20... b3 {[%emt 0:00:56]} 21. cxb3 {[%emt 0:04:05] Active counter play!} (21. fxe7 $2 {loses.} Qxa2+ 22. Kc1 Rfe8 $19) 21... Nxb3 {[%emt 0:01:01]} 22. fxe7 {[%emt 0:01:53] White took control after the opening.   Weighted Error Value: White=0.07 (flawless) /Black=0.52} 1-0

[Event "Oceania Zonal Open 2023"]
[Site "Melbourne"]
[Date "2023.01.24"]
[Round "2.6"]
[White "Young, Cohen"]
[Black "Liu, Yi"]
[Result "0-1"]
[ECO "C12"]
[WhiteElo "1835"]
[BlackElo "2303"]
[Annotator "TA"]
[PlyCount "72"]
[EventDate "2023.01.09"]
[EventType "swiss"]
[EventCountry "AUS"]
[SourceTitle "playchess.com"]
[Source "ChessBase"]
[SourceQuality "1"]
[TimeControl "5400+30"]

{[%evp 17,72,6,0,0,5,0,65,64,56,49,66,75,62,68,70,76,61,57,72,0,35,0,6,8,142,74,69,-70,-62,-67,-83,-54,-64,-27,-51,-64,0,0,0,0,0,0,0,-1006,-993,-947,0,0,0,-739,-676,-929,-925,-29983,-29984,-12845,-12843]} 1. e4 {[%emt 0:00:01] Finkel,Alexander} e6 {[%emt 0:00:06]} 2. d4 {[%emt 0:00:04]} d5 {[%emt 0:00:07]} 3. Nc3 {[%emt 0:00:03]} Nf6 {[%emt 0:00:42]} 4. Bg5 {[%emt 0:00:02]} Bb4 {[%emt 0:02:31]} 5. e5 {[%emt 0:00:10]} h6 {[%emt 0:00:02]} 6. Be3 {[%emt 0:00:07]} Ne4 {[%emt 0:00:06]} 7. Qg4 {[%emt 0:00:04]} g6 {[%emt 0:00:03][%cal Bg7g6,Bg6g5,Bg5f4][%mdl 32]} 8. a3 {[%emt 0:00:16]} Bxc3+ {[%emt 0:00:04]} 9. bxc3 {[%emt 0:00:05]} Nxc3 {[%emt 0:02:02][%cal Oc7c5]} (9... c5 {feels hotter.} 10. Bd3 h5 11. Qf4 g5) 10. Bd3 {[%emt 0:00:08] C12: French: Classical System: McCutcheon Variation.} b6 {[%emt 0:02:36]} 11. h4 {[%emt 0:00:08][%cal Bh2h4,Bh4h5][%mdl 32]} Ba6 {[%emt 0:00:29]} ({Black should try} 11... h5 $11 12. Qf3 c5) 12. h5 $14 {[%emt 0:00:43] White is slightly better.} g5 {[%emt 0:00:43]} 13. f4 {[%emt 0:01:11][%cal Rf4g5]} (13. Bxa6 {simplifies} Nxa6 14. Ne2 Nxe2 15. Qxe2 Nb8 16. O-O) 13... gxf4 {[%emt 0:02:17]} 14. Qg7 {[%emt 0:00:14]} Kd7 {[%emt 0:00:34]} 15. Qxf7+ {[%emt 0:00:37]} Qe7 {[%emt 0:00:06]} 16. Qxe7+ {[%emt 0:00:48]} Kxe7 {[%emt 0:00:02]} 17. Bxf4 {[%emt 0:00:15] [#]} c5 $146 {[%emt 0:09:38]} ({Predecessor:} 17... Bxd3 18. cxd3 Kd7 19. Nf3 Nc6 20. Kd2 Nb5 21. Ke3 Raf8 22. Rhf1 Ne7 23. g4 c5 {1-0 Naiditsch,A (2657)-Stellwagen,D (2573) Corus-B Wijk aan Zee 2006 (1)}) 18. dxc5 {[%emt 0:09:09]} bxc5 {[%emt 0:00:37]} 19. Nf3 {[%emt 0:05:29]} Bxd3 {[%emt 0:03:27]} 20. cxd3 {[%emt 0:00:01]} Nc6 {[%emt 0:00:18]} (20... d4 $11 {keeps the balance.}) 21. Rc1 {[%emt 0:09:42]} ({Better is} 21. Nh4 $1) 21... d4 $16 {[%emt 0:05:26]} 22. g4 {[%emt 0:04:30]} (22. Nh4 $1 $14) 22... Rhf8 $1 $15 {[%emt 0:27:26]} (22... Raf8 23. Nh4 Rxf4 24. Ng6+ Ke8 25. Nxf4 $16 (25. Nxh8 Nxe5 26. Ng6 Nxd3+ 27. Kd2 Rf3 $19)) 23. Nh4 $1 {[%emt 0:00:45] Ng6+ would be deadly.} Rxf4 {[%emt 0:00:03]} 24. Ng6+ {[%emt 0:00:14]} Kd7 {[%emt 0:00:01]} 25. Nxf4 {[%emt 0:00:22] Hoping for Ng6.} Nxe5 {[%emt 0:00:03] Excellent horsemanship.} 26. Kd2 {[%emt 0:04:36]} Rg8 {[%emt 0:01:02] Wards off Ng6. Black is more active.} (26... Kd6 $1 $15) 27. Ng6 $11 {[%emt 0:02:22]} Nxg6 {[%emt 0:02:33]} 28. hxg6 Rxg6 {[%mdl 4096] Endgame KRR-KRN} 29. Rcf1 {[%emt 0:07:56]} Rxg4 {[%emt 0:03:55] ...Rg2+ is the strong threat.} 30. Rxh6 $2 {[%emt 0:00:48][%mdl 8192]} (30. Rfg1 $11 Rf4 31. Rf1 (31. Rxh6 Rf2+ 32. Ke1 Re2+ 33. Kf1 Re3 $17)) 30... Rg2+ $19 {[%emt 0:01:05]} 31. Kc1 {[%emt 0:00:12]} Na2+ $2 {[%emt 0:14:56]} (31... c4 $1 $19 {[%cal Rc4d3]} 32. Rhf6 cxd3) 32. Kd1 $11 {[%emt 0:01:26]} Nc3+ $2 {[%emt 0:00:02][%mdl 8192]} (32... Kd6 $11 33. Rff6 Nc3+ 34. Kc1 Na2+ 35. Kd1 Nc3+ 36. Kc1 Na2+ 37. Kd1) 33. Kc1 $19 {[%emt 0:00:13] [#]} c4 $1 {[%emt 0:00:30][%cal Bc5c4,Bc4c3][%mdl 544]} 34. Rf3 {[%emt 0:01:00] [#]} (34. Rh4 Kc6) 34... Na2+ $1 {[%emt 0:01:58]} 35. Kd1 {[%emt 0:01:36]} c3 {[%emt 0:00:18]} 36. Rf7+ {[%emt 0:00:33]} Kd6 {[%emt 0:00:04] Weighted Error Value: White=0.71/Black=0.25 (precise)} 0-1

[Event "Oceania Zonal Open 2023"]
[Site "Melbourne"]
[Date "2023.01.24"]
[Round "2.7"]
[White "Gong, Patrick"]
[Black "Poberezovsky, Daniel"]
[Result "1-0"]
[ECO "B22"]
[WhiteElo "2292"]
[BlackElo "1813"]
[Annotator "TA"]
[PlyCount "65"]
[EventDate "2023.01.09"]
[EventType "swiss"]
[EventCountry "AUS"]
[SourceTitle "playchess.com"]
[Source "ChessBase"]
[SourceQuality "1"]
[TimeControl "5400+30"]

{[%evp 23,65,-25,0,0,0,-49,-54,-113,0,0,35,34,36,35,33,45,26,29,17,25,42,29,191,179,220,214,216,214,200,197,717,721,990,982,2482,2474,1913,1900,1698,1563,29981,29972,29940,5833]} 1. e4 {[%emt 0:00:06]} c5 {[%emt 0:03:05]} 2. Nf3 {[%emt 0:09:38]} e6 {[%emt 0:00:09]} 3. c3 {[%emt 0:00:12]} Nf6 {[%emt 0:00:05]} 4. e5 {[%emt 0:00:12]} Nd5 {[%emt 0:00:06]} 5. d4 {[%emt 0:00:30]} cxd4 {[%emt 0:00:05]} 6. cxd4 {[%emt 0:00:12]} Nc6 {[%emt 0:00:06]} 7. Bc4 {[%emt 0:00:10]} d6 {[%emt 0:00:07]} 8. Qe2 {[%emt 0:00:08]} Be7 {[%emt 0:00:08]} 9. O-O {[%emt 0:00:09]} O-O {[%emt 0:00:05]} 10. Nc3 {[%emt 0:00:08]} Nxc3 {[%emt 0:00:07]} 11. bxc3 {[%emt 0:00:11]} dxe5 {[%emt 0:00:05]} 12. dxe5 {[%emt 0:00:08]} Qa5 {[%emt 0:00:05]} 13. Rb1 {[%emt 0:00:13] [#] B22: Sicilian: 2 c3.} b6 $146 {[%emt 0:08:34]} ({Predecessor:} 13... Rd8 14. Bd3 g6 15. Bf4 b6 16. Rfc1 Bb7 17. h4 Rac8 18. h5 Nb8 19. Be4 Bxe4 20. Qxe4 Qd5 21. Qxd5 Rxd5 {½-½ Matlakov,M (2688)-Mchedlishvili,M (2570) FIDE World Cup Europe Hybrid Qual 2021 (3.2)}) 14. h4 {[%emt 0:19:25]} (14. Bd3 $11 g6 15. Bh6) 14... Bb7 $1 $15 {[%emt 0:03:11]} 15. Re1 {[%emt 0:05:59]} (15. Bb5 $15) 15... Qa4 {[%emt 0:10:00]} (15... Qxc3 $17 {Strongly threatening ...Rac8.} 16. Bb2 Qa5) 16. Bd3 $1 $11 {[%emt 0:09:57]} g6 {[%emt 0:02:36]} 17. Be4 {[%emt 0:05:03][%cal Oh4h5]} Na5 {[%emt 0:05:17]} 18. Bxb7 {[%emt 0:01:40]} Nxb7 {[%emt 0:00:03]} 19. Bg5 {[%emt 0:00:19]} Bxg5 {[%emt 0:10:17]} 20. Rb4 {[%emt 0:01:17]} Qa3 {[%emt 0:00:33]} 21. Nxg5 {[%emt 0:01:42] Threatens to win with h5.} Qxc3 {[%emt 0:02:53]} 22. Rc4 {[%emt 0:01:35]} Qa3 {[%emt 0:00:09] Black cannot hold the game after this.} (22... Qa5 $11 {and Black stays safe.}) 23. h5 $1 $18 {[%emt 0:02:42][%cal Og5h7] Nxh7! would be deadly.} Nc5 {[%emt 0:20:02]} 24. hxg6 {[%emt 0:01:43]} fxg6 {[%emt 0:03:39]} 25. Rh4 $1 {[%emt 0:01:05]} h5 {[%emt 0:00:25] [#]} 26. Rxh5 $1 $40 {[%emt 0:02:42][%mdl 128] White attacks with force.} gxh5 {[%emt 0:00:32]} (26... Qb4 27. Rh6 Kg7) 27. Qxh5 {[%emt 0:00:30][%csl Gg5][%cal Rh5h7]} Qd3 {[%emt 0:00:22] [#] Prevents Qh7+} 28. Re3 $1 {[%emt 0:02:53]} Qc2 {[%emt 0:06:39]} 29. Rg3 {[%emt 0:01:10][%cal Rg5e4]} Qxf2+ {[%emt 0:00:07]} 30. Kh2 {[%emt 0:00:14][%csl Gg5][%cal Rh5h7]} Qxg3+ {[%emt 0:00:09]} 31. Kxg3 {[%emt 0:00:09][%csl Gg5][%cal Rh5h7]} Rf5 {[%emt 0:00:07]} 32. Qg6+ {[%emt 0:00:32]} Kf8 {[%emt 0:00:07]} 33. Nxe6+ {[%emt 0:00:13][%mdl 64] Remove Defender. Excellently played by Gong!   Weighted Error Value: White=0.06 (flawless) /Black=0.61} 1-0

[Event "Oceania Zonal Open 2023"]
[Site "Melbourne"]
[Date "2023.01.24"]
[Round "2.7"]
[White "Renjith, Sravan"]
[Black "De Vas, Saminda"]
[Result "1-0"]
[ECO "D78"]
[WhiteElo "2172"]
[BlackElo "1779"]
[Annotator "TA"]
[PlyCount "67"]
[EventDate "2023.01.09"]
[EventType "swiss"]
[EventCountry "AUS"]
[SourceTitle "playchess.com"]
[Source "ChessBase"]
[SourceQuality "1"]
[TimeControl "5400+30"]

{[%evp 16,66,33,6,40,0,0,0,0,0,50,41,61,25,37,45,53,47,46,59,92,26,90,80,86,99,192,164,193,163,252,243,249,236,224,205,286,231,567,379,383,360,882,487,714,714,983,975,1626,1582,29998,29999,29999]} 1. d4 {[%emt 17:36:45]} d5 {[%emt 0:00:08]} 2. Nf3 {[%emt 0:00:26]} Nf6 {[%emt 0:00:09]} 3. g3 {[%emt 0:03:03]} g6 {[%emt 0:02:30]} 4. Bg2 {[%emt 0:01:26]} Bg7 {[%emt 0:00:02]} 5. O-O {[%emt 0:01:11]} O-O {[%emt 0:00:03]} 6. c4 {[%emt 0:00:51]} c6 {[%emt 0:04:18]} 7. b3 {[%emt 0:00:14]} Nbd7 {[%emt 0:02:59][%cal Bb8d7,Bd7b6,Bb6c4][%mdl 32]} 8. Bb2 {[%emt 0:01:09]} Ne4 {[%emt 0:09:54] 8...b5 is the hot move.} 9. Nfd2 {[%emt 0:07:24]} Nxd2 {[%emt 0:04:13] D78: Fianchetto Grünfeld: 6 0-0 c6.} 10. Qxd2 {[%emt 0:01:24] [#]} dxc4 $146 {[%emt 0:01:11]} ({Predecessor:} 10... Nb6 11. a4 Be6 12. a5 Nc8 13. a6 b6 14. Nc3 Qd7 15. cxd5 Bxd5 16. Nxd5 cxd5 17. Rfc1 {½-½ Froewis,G (2434)-Hiermann,D (2280) AUT-ch Pinkafeld 2015 (3)}) 11. bxc4 {[%emt 0:00:42]} Nb6 {[%emt 0:02:04] The position is equal.} 12. Qc2 {[%emt 0:02:37]} c5 {[%emt 0:10:10]} ({Don't do} 12... Bxd4 13. Rd1 c5 14. e3 $16) (12... Bf5 $1 $11 13. e4 Be6) 13. dxc5 $14 {[%emt 0:05:07]} Bxb2 {[%emt 0:00:16]} 14. Qxb2 {[%emt 0:00:07]} Nxc4 {[%emt 0:00:12]} 15. Qc3 {[%emt 0:07:31]} Na5 {[%emt 0:01:56]} 16. Na3 {[%emt 0:01:24][%cal Bb1a3,Ba3b5,Bb5c3,Bc3b5,Bb5d6][%mdl 32]} Nc6 {[%emt 0:02:05]} 17. Rab1 {[%emt 0:03:19]} Qa5 {[%emt 0:07:34]} 18. Qe3 {[%emt 0:01:30] White is more active.} (18. Qxa5 $16 Nxa5 19. Rb5) 18... Qa6 {[%emt 0:08:08] [#]} (18... Qa4 $11 {remains equal.}) 19. Nb5 $1 $16 {[%emt 0:04:09] Strongly threatening Nc7. White leaves nothing to chance now.} Qa5 {[%emt 0:05:32] Repels Nc7} 20. Nc3 {[%emt 0:05:17]} e6 {[%emt 0:06:41]} (20... Rd8 $16) 21. Nb5 {[%emt 0:18:11]} a6 {[%emt 0:04:47]} 22. Nd6 {[%emt 0:02:31]} Qc7 {[%emt 0:00:19]} (22... Qxa2 $142 23. Rfd1 (23. Nxb7 Bxb7 24. Rxb7 Rac8 $16) 23... Qa4) 23. Rb6 $18 {[%emt 0:02:44]} Ra7 {[%emt 0:05:14]} 24. Bxc6 {[%emt 0:06:47]} bxc6 {[%emt 0:00:40] Black is weak on the dark squares} 25. Rfb1 {[%emt 0:03:54]} a5 {[%emt 0:04:20]} 26. h4 {[%emt 0:03:31][%cal Bh2h4,Bh4h5][%mdl 32]} Ra6 $2 {[%emt 0:01:47] [#]} (26... Qe7 27. Rb8 Bd7) 27. h5 $1 {[%emt 0:00:30][%mdl 512] Black must now prevent Rb8.} Rxb6 {[%emt 0:02:05]} 28. Rxb6 {[%emt 0:00:12] Hoping for h6.} f5 $2 {[%emt 0:05:42]} (28... Qe7 29. Qe5 gxh5 30. Qxh5 Bd7) 29. hxg6 {[%emt 0:00:45]} hxg6 {[%emt 0:00:35]} (29... Kg7 $142 30. Qf3 Kxg6 31. Rxc6 Qd7) 30. Qh6 {[%emt 0:00:09]} Qd7 {[%emt 0:04:31]} 31. Qxg6+ {[%emt 0:00:26]} Kh8 {[%emt 0:00:02]} 32. Rb8 {[%emt 0:00:37] Rxc8 is the strong threat.} Rg8 {[%emt 0:02:06]} 33. Qh6+ {[%emt 0:00:10]} Qh7 {[%emt 0:00:11]} 34. Nf7# {[%emt 0:00:07] An entertaining game by Renjith.   Weighted Error Value: White=0.44/Black=0.84} 1-0

[Event "Oceania Zonal Open 2023"]
[Site "Melbourne"]
[Date "2023.01.24"]
[Round "2.8"]
[White "Lacson, Joemar"]
[Black "Solomon, Stephen J"]
[Result "0-1"]
[ECO "A29"]
[WhiteElo "1815"]
[BlackElo "2279"]
[Annotator "TA"]
[PlyCount "98"]
[EventDate "2023.01.09"]
[EventType "swiss"]
[EventCountry "AUS"]
[SourceTitle "playchess.com"]
[Source "ChessBase"]
[SourceQuality "1"]
[TimeControl "5400+30"]

{[%evp 20,98,0,7,10,9,25,-73,-74,-88,-75,-76,-54,-59,-54,-61,-66,-50,-53,-58,-58,-108,-110,-151,-151,-151,-141,-145,-145,-141,-115,-131,-117,-152,-141,-204,-204,-191,-191,-193,-182,-182,-186,-247,-163,-244,-218,-245,-234,-287,-260,-834,-814,-833,-805,-822,-802,-810,-812,-785,-798,-986,-912,-793,-708,-809,-804,-776,-767,-1091,-1075,-1063,-985,-12833,-1684,-12838,-10412,-12845,-12845,-12846,-12846]} 1. g3 {[%emt 0:09:28]} e5 {[%emt 0:00:41]} 2. c4 {[%emt 0:00:15]} Nf6 {[%emt 0:01:12]} 3. Bg2 {[%emt 0:00:21]} d5 {[%emt 0:00:14]} 4. cxd5 {[%emt 0:00:06]} Nxd5 {[%emt 0:00:06]} 5. Nc3 {[%emt 0:00:09]} Nb6 {[%emt 0:00:53]} 6. Nf3 {[%emt 0:00:24]} Nc6 {[%emt 0:00:54][%cal Bb8c6,Bc6d4,Bd4f3][%mdl 32]} 7. O-O {[%emt 0:00:14]} Be7 {[%emt 0:00:21]} 8. d3 {[%emt 0:07:14]} O-O {[%emt 0:00:59]} 9. Bd2 {[%emt 0:00:45]} Re8 {[%emt 0:11:56]} 10. Rc1 {[%emt 0:02:42]} Bf8 {[%emt 0:02:58]} 11. a3 {[%emt 0:04:19]} Nd4 {[%emt 0:04:43] A29: English Opening: Four Knights Variation with 4 g3.} 12. Ne4 {[%emt 0:11:44]} c6 {[%emt 0:07:39] [#]} 13. e3 $146 {[%emt 0:23:25]} (13. Nxd4 $11 exd4 14. b4) ({Predecessor:} 13. Nc5 Nd7 14. Ne4 a5 15. Nxd4 exd4 16. Bf4 Ne5 17. Qb3 a4 18. Qc2 Ra5 19. Rfe1 {½-½ Taspinar,Y (2348)-Baches Garcia,G (2326) Titled Tuesday intern op 14th Jun Early blitz 2022 (6)}) 13... Nxf3+ $17 {[%emt 0:02:24] Black is better.} 14. Qxf3 {[%emt 0:00:02]} f5 {[%emt 0:11:39]} 15. Nc5 {[%emt 0:00:22] [#]} ({But not} 15. Qh5 $2 fxe4 16. dxe4 Bg4 17. Qxg4 Qxd2 $19) 15... e4 $1 {[%emt 0:02:08]} 16. Qh5 {[%emt 0:04:39][%cal Rd3e4]} g6 $36 {[%emt 0:04:32][%mdl 2048] Black is more active.} ({Reject} 16... exd3 17. b4 $11) 17. Qe2 {[%emt 0:00:46][%cal Rd3e4]} Bxc5 {[%emt 0:01:29]} 18. Rxc5 {[%emt 0:00:02]} Qxd3 {[%emt 0:06:06]} 19. Qxd3 {[%emt 0:00:21]} exd3 {[%emt 0:00:09]} 20. b4 {[%emt 0:05:07]} (20. b3 $15) 20... a6 {[%emt 0:05:56]} 21. Rfc1 {[%emt 0:06:38] White is weak on the light squares} Be6 {[%emt 0:01:07]} 22. R5c3 {[%emt 0:00:27]} Rad8 {[%emt 0:01:41] aiming for ...Na4.} 23. Rc5 {[%emt 0:04:33]} Bb3 {[%emt 0:04:27]} 24. R5c3 {[%emt 0:05:52]} Bd5 {[%emt 0:04:21] Black has more active pieces.} 25. Bxd5+ {[%emt 0:03:53]} Rxd5 {[%emt 0:00:43]} 26. Kf1 {[%emt 0:01:39]} Kf7 {[%emt 0:00:47]} 27. Rc5 {[%emt 0:00:16]} (27. h3 $17 {might work better.}) 27... Rxc5 $19 {[%emt 0:04:03]} 28. Rxc5 {[%emt 0:01:41][%mdl 4096] Endgame KRB-KRN} Na4 {[%emt 0:03:40]} 29. Rc1 {[%emt 0:01:18]} Rd8 {[%emt 0:01:03]} 30. Ke1 {[%emt 0:00:31]} Nb2 {[%emt 0:03:59]} 31. Rc5 {[%emt 0:01:21]} (31. Rc3 $142) 31... Rd5 {[%emt 0:00:20]} 32. Rc1 {[%emt 0:01:48]} (32. Rxd5 {was called for.} cxd5 33. Bc3) 32... Ke6 {[%emt 0:00:19]} 33. f3 {[%emt 0:00:32]} Kd7 {[%emt 0:00:29]} 34. Kf2 {[%emt 0:00:31]} b5 {[%emt 0:04:16]} 35. Rc3 $2 {[%emt 0:00:02]} (35. e4 fxe4 36. fxe4) 35... Nd1+ {[%emt 0:00:41] Black is clearly winning.} 36. Ke1 {[%emt 0:00:02]} Nxc3 {[%emt 0:00:08]} 37. Bxc3 {[%emt 0:00:02] [#] KR-KB} d2+ $1 {[%emt 0:03:18]} 38. Bxd2 {[%emt 0:00:57]} (38. Kd1 Rd3) 38... Rd3 {[%emt 0:00:04]} 39. Bc1 {[%emt 0:00:16] [#]} c5 $1 {[%emt 0:00:40]} 40. bxc5 {[%emt 0:00:29]} (40. h3 c4) 40... Kc6 {[%emt 0:00:06]} 41. Ke2 {[%emt 0:00:17]} Rd7 {[%emt 0:00:04]} 42. e4 {[%emt 0:02:23]} fxe4 {[%emt 0:00:05]} 43. fxe4 {[%emt 0:00:02]} Kxc5 {[%emt 0:00:11]} 44. Ke3 {[%emt 0:00:20]} Rd1 {[%emt 0:00:12]} 45. Bb2 {[%emt 0:01:07]} a5 {[%emt 0:00:08][%cal Ba6a5,Ba5b4][%mdl 32]} 46. Bc3 {[%emt 0:00:16]} b4 {[%emt 0:00:07]} 47. axb4+ {[%emt 0:02:30]} axb4 {[%emt 0:00:06]} 48. Bd2 {[%emt 0:00:03] [#]} Rxd2 $1 {[%emt 0:00:32][%mdl 576] Deflection} 49. Kxd2 {[%emt 0:00:19]} Kd4 {[%emt 0:00:05] White did not feel at home in the position after the opening.   Weighted Error Value: White=0.91/Black=0.09 (flawless)} 0-1